[Event "Late-Titled-Tuesday-Blitz-June-18-2024"]
[Site "Chess.com"]
[Date "2024.06.18"]
[Round "10"]
[White "KarlEmilElmer"]
[Black "LoonsDeKoeben"]
[Result "0-1"]
[WhiteElo "2274"]
[BlackElo "2412"]
[TimeControl "180+1"]
[EndTime "15:55:44 PDT"]
[Termination "LoonsDeKoeben won on time"]

1. d4 {[%clk 0:03:00.9]} 1... Nf6 {[%clk 0:02:59.2]} 2. c4 {[%clk 0:02:57.5]}
2... c5 {[%clk 0:02:58]} 3. d5 {[%clk 0:02:57.1]} 3... b5 {[%clk 0:02:58.4]} 4.
cxb5 {[%clk 0:02:57.5]} 4... a6 {[%clk 0:02:58.9]} 5. bxa6 {[%clk 0:02:56.4]}
5... g6 {[%clk 0:02:59.5]} 6. Nc3 {[%clk 0:02:54.5]} 6... Bg7 {[%clk 0:02:59.1]}
7. e4 {[%clk 0:02:53.9]} 7... O-O {[%clk 0:02:59.6]} 8. Nf3 {[%clk 0:02:53.9]}
8... Qa5 {[%clk 0:02:59.2]} 9. Be2 {[%clk 0:02:52.1]} 9... Nxe4 {[%clk
0:02:56.5]} 10. O-O {[%clk 0:02:50.1]} 10... Nxc3 {[%clk 0:02:50.9]} 11. bxc3
{[%clk 0:02:49.5]} 11... Bxa6 {[%clk 0:02:47.1]} 12. Bd2 {[%clk 0:02:19.7]}
12... Bxc3 {[%clk 0:02:38.6]} 13. Rc1 {[%clk 0:02:13.7]} 13... Bxd2 {[%clk
0:02:33.9]} 14. Nxd2 {[%clk 0:02:14.6]} 14... Bxe2 {[%clk 0:02:23.3]} 15. Qxe2
{[%clk 0:02:14.3]} 15... Qxa2 {[%clk 0:02:15.2]} 16. Rxc5 {[%clk 0:02:13.5]}
16... Na6 {[%clk 0:02:10.7]} 17. Rb5 {[%clk 0:01:36.3]} 17... Nc7 {[%clk
0:02:09.3]} 18. Rb7 {[%clk 0:01:33.3]} 18... Nxd5 {[%clk 0:02:09]} 19. Rxd7
{[%clk 0:01:32.1]} 19... Rfd8 {[%clk 0:01:36.7]} 20. Rxd8+ {[%clk 0:01:03.1]}
20... Rxd8 {[%clk 0:01:37.6]} 21. Qe1 {[%clk 0:00:26.8]} 21... Nf4 {[%clk
0:01:32.3]} 22. Nf3 {[%clk 0:00:26.2]} 22... Ne2+ {[%clk 0:00:56.9]} 23. Kh1
{[%clk 0:00:26.5]} 23... Rd6 {[%clk 0:00:54.4]} 24. Qb4 {[%clk 0:00:18.2]} 24...
Re6 {[%clk 0:00:51.9]} 25. h3 {[%clk 0:00:16.6]} 25... Qa6 {[%clk 0:00:48.2]}
26. Rb1 {[%clk 0:00:13.4]} 26... Qd6 {[%clk 0:00:46.4]} 27. Qb2 {[%clk
0:00:08.7]} 27... h6 {[%clk 0:00:34.3]} 28. Qa1 {[%clk 0:00:07.5]} 28... Kh7
{[%clk 0:00:31.4]} 29. Qb2 {[%clk 0:00:05.3]} 29... Nf4 {[%clk 0:00:26.3]} 30.
Qa2 {[%clk 0:00:03.5]} 30... Qc6 {[%clk 0:00:23]} 31. Rd1 {[%clk 0:00:02.7]}
31... Nxh3 {[%clk 0:00:21.2]} 32. gxh3 {[%clk 0:00:01.9]} 32... Qxf3+ {[%clk
0:00:20.1]} 33. Kh2 {[%clk 0:00:01.8]} 33... Qxd1 {[%clk 0:00:19.9]} 34. Qa8
{[%clk 0:00:01.5]} 34... Qd6+ {[%clk 0:00:18.7]} 35. Kg2 {[%clk 0:00:01.5]}
35... Rf6 {[%clk 0:00:18.2]} 36. Kf1 {[%clk 0:00:01]} 36... Qc6 {[%clk
0:00:18.1]} 0-1

[Event "Late-Titled-Tuesday-Blitz-June-18-2024"]
[Site "Chess.com"]
[Date "2024.06.18"]
[Round "10"]
[White "AlexeiShirov"]
[Black "MagnusCarlsen"]
[Result "0-1"]
[WhiteElo "2871"]
[BlackElo "3177"]
[TimeControl "180+1"]
[EndTime "15:55:50 PDT"]
[Termination "MagnusCarlsen won by resignation"]

1. e4 {[%clk 0:03:00.9]} 1... c5 {[%clk 0:03:00]} 2. Nf3 {[%clk 0:03:00.4]} 2...
e6 {[%clk 0:03:00.8]} 3. d4 {[%clk 0:02:58.7]} 3... cxd4 {[%clk 0:03:01.7]} 4.
Nxd4 {[%clk 0:02:58.4]} 4... a6 {[%clk 0:03:02.4]} 5. c4 {[%clk 0:02:57.4]} 5...
Nf6 {[%clk 0:03:02.3]} 6. Nc3 {[%clk 0:02:57.2]} 6... Qc7 {[%clk 0:03:02.7]} 7.
a3 {[%clk 0:02:53.8]} 7... Nc6 {[%clk 0:03:02.8]} 8. Be3 {[%clk 0:02:53.3]} 8...
b6 {[%clk 0:03:01.5]} 9. Rc1 {[%clk 0:02:48.6]} 9... Nxd4 {[%clk 0:03:00]} 10.
Bxd4 {[%clk 0:02:45.3]} 10... Bb7 {[%clk 0:03:00.5]} 11. f3 {[%clk 0:02:43.8]}
11... d6 {[%clk 0:03:00.3]} 12. b4 {[%clk 0:02:38.6]} 12... Be7 {[%clk
0:02:59.6]} 13. Na4 {[%clk 0:02:35.4]} 13... Nd7 {[%clk 0:02:47.2]} 14. Bxg7
{[%clk 0:02:34.1]} 14... Rg8 {[%clk 0:02:47.9]} 15. Bd4 {[%clk 0:02:33.7]} 15...
h5 {[%clk 0:02:47.7]} 16. g3 {[%clk 0:02:30.6]} 16... h4 {[%clk 0:02:47.4]} 17.
g4 {[%clk 0:02:29.6]} 17... Bg5 {[%clk 0:02:47.4]} 18. Rc2 {[%clk 0:02:25.2]}
18... Bc6 {[%clk 0:02:43.7]} 19. Nc3 {[%clk 0:02:22.5]} 19... Ne5 {[%clk
0:02:42.6]} 20. Nd5 {[%clk 0:02:14.3]} 20... Qb7 {[%clk 0:02:40.2]} 21. f4
{[%clk 0:02:07.5]} 21... exd5 {[%clk 0:02:35.4]} 22. fxe5 {[%clk 0:02:02.8]}
22... dxe5 {[%clk 0:02:31]} 23. cxd5 {[%clk 0:01:56.5]} 23... Ba4 {[%clk
0:02:30.4]} 24. Bxe5 {[%clk 0:01:50.3]} 24... Qe7 {[%clk 0:02:29.1]} 25. Bd4
{[%clk 0:01:39.4]} 25... Rd8 {[%clk 0:02:26.8]} 26. Bxa6 {[%clk 0:01:25.3]}
26... Kf8 {[%clk 0:01:44.7]} 27. Qe2 {[%clk 0:01:13.9]} 27... Bxc2 {[%clk
0:01:39.5]} 28. Qxc2 {[%clk 0:01:13.2]} 28... Rxd5 {[%clk 0:01:39.1]} 29. Bxb6
{[%clk 0:00:53.4]} 29... Rg6 {[%clk 0:01:07.4]} 30. Be2 {[%clk 0:00:44.9]} 30...
Rd2 {[%clk 0:01:00.7]} 31. Qc5 {[%clk 0:00:43.5]} 31... Rxb6 {[%clk 0:00:55.4]}
32. Qxb6 {[%clk 0:00:40.1]} 32... Rxe2+ {[%clk 0:00:38.6]} 33. Kxe2 {[%clk
0:00:39]} 33... Qxe4+ {[%clk 0:00:39]} 34. Kf2 {[%clk 0:00:38.8]} 34... Qxh1
{[%clk 0:00:29.9]} 35. Qc5+ {[%clk 0:00:37.4]} 35... Be7 {[%clk 0:00:29.7]} 36.
Qe5 {[%clk 0:00:37.2]} 36... f6 {[%clk 0:00:29.2]} 37. Qf4 {[%clk 0:00:34.9]}
37... Kg7 {[%clk 0:00:23]} 38. a4 {[%clk 0:00:30.2]} 38... Qc6 {[%clk 0:00:19]}
39. b5 {[%clk 0:00:29.3]} 39... Qc2+ {[%clk 0:00:19]} 40. Kf3 {[%clk 0:00:28.3]}
40... Bc5 {[%clk 0:00:18.7]} 41. Qc7+ {[%clk 0:00:26.4]} 41... Kg6 {[%clk
0:00:18.5]} 42. Qc8 {[%clk 0:00:20.5]} 42... Qd3+ {[%clk 0:00:17.7]} 43. Kg2
{[%clk 0:00:19]} 43... Qe2+ {[%clk 0:00:17.9]} 0-1

[Event "Late-Titled-Tuesday-Blitz-June-18-2024"]
[Site "Chess.com"]
[Date "2024.06.18"]
[Round "10"]
[White "Bob_2004"]
[Black "Slovineanu"]
[Result "0-1"]
[WhiteElo "2723"]
[BlackElo "2569"]
[TimeControl "180+1"]
[EndTime "15:55:53 PDT"]
[Termination "Slovineanu won on time"]

1. Nf3 {[%clk 0:03:00.9]} 1... Nf6 {[%clk 0:02:54.1]} 2. c4 {[%clk 0:03:01.1]}
2... e6 {[%clk 0:02:53.9]} 3. g3 {[%clk 0:03:00.7]} 3... d5 {[%clk 0:02:53.7]}
4. Bg2 {[%clk 0:03:01.1]} 4... Be7 {[%clk 0:02:53.8]} 5. O-O {[%clk 0:03:01.5]}
5... O-O {[%clk 0:02:54.4]} 6. b3 {[%clk 0:03:01.4]} 6... b6 {[%clk 0:02:54]} 7.
Bb2 {[%clk 0:03:00.8]} 7... Bb7 {[%clk 0:02:54.2]} 8. Ne5 {[%clk 0:02:52.4]}
8... c5 {[%clk 0:02:51.1]} 9. d3 {[%clk 0:02:46.3]} 9... Nbd7 {[%clk 0:02:47.2]}
10. f4 {[%clk 0:02:40.9]} 10... Qc7 {[%clk 0:02:43.1]} 11. Nxd7 {[%clk
0:02:38.5]} 11... Qxd7 {[%clk 0:02:42.6]} 12. Nd2 {[%clk 0:02:33.8]} 12... d4
{[%clk 0:02:42.1]} 13. Nf3 {[%clk 0:02:22.9]} 13... Ng4 {[%clk 0:02:38]} 14. Bc1
{[%clk 0:02:22.8]} 14... Bf6 {[%clk 0:02:29.5]} 15. Rb1 {[%clk 0:01:58.9]} 15...
Rad8 {[%clk 0:02:21.2]} 16. b4 {[%clk 0:01:43.9]} 16... cxb4 {[%clk 0:02:06.9]}
17. Rxb4 {[%clk 0:01:44.8]} 17... Be7 {[%clk 0:02:05.8]} 18. Rb5 {[%clk
0:01:42.2]} 18... Bc5 {[%clk 0:01:59.5]} 19. Rb1 {[%clk 0:01:11.4]} 19... Bxf3
{[%clk 0:01:52.5]} 20. Bxf3 {[%clk 0:01:10.9]} 20... Ne3 {[%clk 0:01:53.2]} 21.
Bxe3 {[%clk 0:01:10.3]} 21... dxe3 {[%clk 0:01:53.6]} 22. Qb3 {[%clk 0:00:52.6]}
22... g6 {[%clk 0:01:51.4]} 23. Qb5 {[%clk 0:00:52.6]} 23... Qd4 {[%clk
0:01:47.3]} 24. Qc6 {[%clk 0:00:44.9]} 24... h5 {[%clk 0:01:36.6]} 25. Qe4
{[%clk 0:00:39]} 25... Qf6 {[%clk 0:01:36]} 26. a4 {[%clk 0:00:33]} 26... a5
{[%clk 0:01:34.2]} 27. Rb5 {[%clk 0:00:32.8]} 27... Kg7 {[%clk 0:01:31.9]} 28.
Rfb1 {[%clk 0:00:32.1]} 28... h4 {[%clk 0:01:23.8]} 29. Rxb6 {[%clk 0:00:22.7]}
29... Bxb6 {[%clk 0:01:16.7]} 30. Rxb6 {[%clk 0:00:23.6]} 30... hxg3 {[%clk
0:00:57.1]} 31. hxg3 {[%clk 0:00:24.5]} 31... Rb8 {[%clk 0:00:31.1]} 32. Qxe3
{[%clk 0:00:21.4]} 32... Rxb6 {[%clk 0:00:24.4]} 33. Qxb6 {[%clk 0:00:22.3]}
33... Qa1+ {[%clk 0:00:22.7]} 34. Kg2 {[%clk 0:00:21.1]} 34... Qxa4 {[%clk
0:00:22.8]} 35. Qb2+ {[%clk 0:00:16]} 35... Kg8 {[%clk 0:00:21.6]} 36. c5 {[%clk
0:00:16.4]} 36... Qb4 {[%clk 0:00:20.7]} 37. Qe5 {[%clk 0:00:14.4]} 37... a4
{[%clk 0:00:18.8]} 38. d4 {[%clk 0:00:04.7]} 38... a3 {[%clk 0:00:17.4]} 39. d5
{[%clk 0:00:05.3]} 39... Qxc5 {[%clk 0:00:17.5]} 0-1

[Event "Late-Titled-Tuesday-Blitz-June-18-2024"]
[Site "Chess.com"]
[Date "2024.06.18"]
[Round "10"]
[White "Korchmar_Vasiliy"]
[Black "Mops_2004"]
[Result "0-1"]
[WhiteElo "2640"]
[BlackElo "2826"]
[TimeControl "180+1"]
[EndTime "15:55:54 PDT"]
[Termination "Mops_2004 won on time"]

1. e4 {[%clk 0:03:00.9]} 1... c5 {[%clk 0:02:59.8]} 2. d4 {[%clk 0:03:00.8]}
2... cxd4 {[%clk 0:02:59.6]} 3. Qxd4 {[%clk 0:03:01.7]} 3... Nc6 {[%clk
0:02:59]} 4. Qd3 {[%clk 0:03:02.1]} 4... e6 {[%clk 0:02:59]} 5. Nc3 {[%clk
0:03:02.1]} 5... a6 {[%clk 0:02:58.8]} 6. Bf4 {[%clk 0:03:02.2]} 6... b5 {[%clk
0:02:58.5]} 7. O-O-O {[%clk 0:03:01.8]} 7... Bb7 {[%clk 0:02:58.8]} 8. Qg3
{[%clk 0:02:53.3]} 8... Rc8 {[%clk 0:02:56.4]} 9. Kb1 {[%clk 0:02:49.6]} 9...
Nf6 {[%clk 0:02:53]} 10. Be2 {[%clk 0:02:43.4]} 10... b4 {[%clk 0:02:48.6]} 11.
Na4 {[%clk 0:02:38.2]} 11... Nxe4 {[%clk 0:02:48]} 12. Qe3 {[%clk 0:02:35.9]}
12... Ne7 {[%clk 0:02:26.6]} 13. Qa7 {[%clk 0:01:55.6]} 13... Bc6 {[%clk
0:02:26.3]} 14. Nb6 {[%clk 0:01:51.8]} 14... Nd5 {[%clk 0:02:07.6]} 15. Nxc8
{[%clk 0:01:11]} 15... Nxf4 {[%clk 0:02:06.1]} 16. Qb8 {[%clk 0:00:32.7]} 16...
Nxe2 {[%clk 0:01:31.4]} 17. Nxe2 {[%clk 0:00:32.5]} 17... Nxf2 {[%clk
0:01:32.1]} 18. Nd4 {[%clk 0:00:26.1]} 18... Bd5 {[%clk 0:01:21.4]} 19. Nf5
{[%clk 0:00:22.6]} 19... Nxh1 {[%clk 0:01:07.2]} 20. Rxd5 {[%clk 0:00:18.3]}
20... g6 {[%clk 0:00:50]} 21. Qe5 {[%clk 0:00:05.4]} 21... gxf5 {[%clk
0:00:47.5]} 22. Qxh8 {[%clk 0:00:03.9]} 22... Qxc8 {[%clk 0:00:38.9]} 23. Rd2
{[%clk 0:00:03.1]} 23... Qc4 {[%clk 0:00:35.3]} 24. Rd1 {[%clk 0:00:02.4]} 24...
Nf2 {[%clk 0:00:34.4]} 25. Rc1 {[%clk 0:00:02.4]} 25... Ne4 {[%clk 0:00:34.2]}
26. Qxh7 {[%clk 0:00:01.9]} 26... a5 {[%clk 0:00:28.6]} 27. Qh3 {[%clk
0:00:02.1]} 27... a4 {[%clk 0:00:26.7]} 28. Qd3 {[%clk 0:00:02.4]} 28... Qc5
{[%clk 0:00:26.7]} 29. h4 {[%clk 0:00:02.3]} 29... a3 {[%clk 0:00:26.4]} 30. Rd1
{[%clk 0:00:02.1]} 30... d5 {[%clk 0:00:25.1]} 31. Qa6 {[%clk 0:00:02.1]} 31...
Bg7 {[%clk 0:00:22.6]} 32. Qa8+ {[%clk 0:00:02.3]} 32... Ke7 {[%clk 0:00:23.1]}
33. Qb7+ {[%clk 0:00:02]} 33... Kf6 {[%clk 0:00:23.1]} 34. g4 {[%clk 0:00:01.9]}
34... axb2 {[%clk 0:00:17.3]} 35. g5+ {[%clk 0:00:01]} 35... Kg6 {[%clk
0:00:17.6]} 36. h5+ {[%clk 0:00:01.6]} 36... Kh7 {[%clk 0:00:13.9]} 37. g6+
{[%clk 0:00:01.5]} 37... Kh6 {[%clk 0:00:13.7]} 0-1

[Event "Late-Titled-Tuesday-Blitz-June-18-2024"]
[Site "Chess.com"]
[Date "2024.06.18"]
[Round "10"]
[White "th3d4rkness"]
[Black "santosalberto1987"]
[Result "0-1"]
[WhiteElo "2249"]
[BlackElo "2572"]
[TimeControl "180+1"]
[EndTime "15:55:57 PDT"]
[Termination "santosalberto1987 won on time"]

1. e4 {[%clk 0:03:00.9]} 1... e6 {[%clk 0:02:59.6]} 2. d4 {[%clk 0:02:58.6]}
2... d5 {[%clk 0:02:59.9]} 3. e5 {[%clk 0:02:59]} 3... c5 {[%clk 0:03:00]} 4. c3
{[%clk 0:02:59.1]} 4... Qb6 {[%clk 0:03:00.3]} 5. Nf3 {[%clk 0:02:59.1]} 5...
Nc6 {[%clk 0:03:00.6]} 6. Be2 {[%clk 0:02:55.9]} 6... cxd4 {[%clk 0:02:56.8]} 7.
cxd4 {[%clk 0:02:55.8]} 7... Nh6 {[%clk 0:02:56.7]} 8. Na3 {[%clk 0:02:43.8]}
8... Bxa3 {[%clk 0:02:56]} 9. bxa3 {[%clk 0:02:43.7]} 9... Nf5 {[%clk
0:02:55.9]} 10. Be3 {[%clk 0:02:42.2]} 10... Qa5+ {[%clk 0:02:47.4]} 11. Bd2
{[%clk 0:02:38.2]} 11... Qxa3 {[%clk 0:02:44.3]} 12. O-O {[%clk 0:02:36]} 12...
O-O {[%clk 0:02:41.6]} 13. Bc1 {[%clk 0:02:20.1]} 13... Qc3 {[%clk 0:02:26.8]}
14. Bd2 {[%clk 0:02:18.2]} 14... Qa3 {[%clk 0:02:26.2]} 15. Bc1 {[%clk
0:02:18.4]} 15... Qa5 {[%clk 0:02:25.4]} 16. a4 {[%clk 0:02:12.5]} 16... Bd7
{[%clk 0:02:23]} 17. Ba3 {[%clk 0:02:12.1]} 17... Rfc8 {[%clk 0:02:22.5]} 18. g4
{[%clk 0:02:06.4]} 18... Nfe7 {[%clk 0:02:17.3]} 19. Bd3 {[%clk 0:02:02.1]}
19... Ng6 {[%clk 0:02:16.6]} 20. h4 {[%clk 0:01:58.7]} 20... Nb4 {[%clk
0:02:14.1]} 21. Bb1 {[%clk 0:01:56.3]} 21... Bxa4 {[%clk 0:01:48.9]} 22. Qd2
{[%clk 0:01:52.9]} 22... Nc6 {[%clk 0:01:48.5]} 23. Qe3 {[%clk 0:01:43.4]} 23...
b5 {[%clk 0:01:33]} 24. h5 {[%clk 0:01:43.2]} 24... Nf8 {[%clk 0:01:32.8]} 25.
Bxf8 {[%clk 0:01:31.3]} 25... Kxf8 {[%clk 0:01:29.8]} 26. Bxh7 {[%clk 0:01:23]}
26... Nd8 {[%clk 0:01:05.9]} 27. Qa3+ {[%clk 0:01:07.4]} 27... Ke8 {[%clk
0:01:00]} 28. Bc2 {[%clk 0:01:04.2]} 28... Rxc2 {[%clk 0:00:56]} 29. Ng5 {[%clk
0:00:58.5]} 29... Qd2 {[%clk 0:00:42.7]} 30. Nh7 {[%clk 0:00:54]} 30... Rc6
{[%clk 0:00:22.5]} 31. Qf8+ {[%clk 0:00:48.4]} 31... Kd7 {[%clk 0:00:22.7]} 32.
Qxg7 {[%clk 0:00:36.8]} 32... Qxd4 {[%clk 0:00:22.3]} 33. Nf6+ {[%clk
0:00:15.1]} 33... Kc7 {[%clk 0:00:22.2]} 34. Ne8+ {[%clk 0:00:07.1]} 34... Kb7
{[%clk 0:00:20.1]} 35. Qf6 {[%clk 0:00:01.2]} 35... Qxg4+ {[%clk 0:00:16.9]} 36.
Kh1 {[%clk 0:00:01.6]} 36... Qxh5+ {[%clk 0:00:16.3]} 37. Kg1 {[%clk 0:00:02]}
37... Qg6+ {[%clk 0:00:15.6]} 38. Qxg6 {[%clk 0:00:01.8]} 38... fxg6 {[%clk
0:00:16.5]} 39. Nd6+ {[%clk 0:00:02.1]} 39... Kc7 {[%clk 0:00:15.7]} 0-1

[Event "Late-Titled-Tuesday-Blitz-June-18-2024"]
[Site "Chess.com"]
[Date "2024.06.18"]
[Round "10"]
[White "HouseOfDurin"]
[Black "Eloist"]
[Result "0-1"]
[WhiteElo "2339"]
[BlackElo "2455"]
[TimeControl "180+1"]
[EndTime "15:55:57 PDT"]
[Termination "Eloist won by checkmate"]

1. d4 {[%clk 0:03:00.9]} 1... e6 {[%clk 0:02:53.3]} 2. h4 {[%clk 0:02:59.3]}
2... Nf6 {[%clk 0:02:45]} 3. Bg5 {[%clk 0:02:59.5]} 3... h6 {[%clk 0:02:43.3]}
4. Bxf6 {[%clk 0:02:59.5]} 4... Qxf6 {[%clk 0:02:43.3]} 5. c4 {[%clk 0:03:00.1]}
5... c5 {[%clk 0:02:37.9]} 6. e3 {[%clk 0:02:58.1]} 6... Nc6 {[%clk 0:02:33.3]}
7. Nf3 {[%clk 0:02:56.5]} 7... cxd4 {[%clk 0:02:25.8]} 8. exd4 {[%clk
0:02:54.7]} 8... Bb4+ {[%clk 0:02:20.7]} 9. Nc3 {[%clk 0:02:54.6]} 9... b6
{[%clk 0:02:06.2]} 10. Qd2 {[%clk 0:02:52]} 10... Bb7 {[%clk 0:02:00.8]} 11. a3
{[%clk 0:02:50.9]} 11... Bxc3 {[%clk 0:01:59.5]} 12. Qxc3 {[%clk 0:02:51.8]}
12... Rc8 {[%clk 0:01:52.1]} 13. Be2 {[%clk 0:02:43.9]} 13... O-O {[%clk
0:01:41.3]} 14. O-O {[%clk 0:02:38.6]} 14... Rfd8 {[%clk 0:01:39.8]} 15. Rac1
{[%clk 0:02:26.6]} 15... d5 {[%clk 0:01:38.8]} 16. c5 {[%clk 0:02:26.3]} 16...
bxc5 {[%clk 0:01:34.9]} 17. dxc5 {[%clk 0:02:27.2]} 17... d4 {[%clk 0:01:28.8]}
18. Qd3 {[%clk 0:01:56]} 18... e5 {[%clk 0:01:23.2]} 19. b4 {[%clk 0:01:46.6]}
19... Ne7 {[%clk 0:00:58.3]} 20. Nd2 {[%clk 0:01:12.4]} 20... Qxh4 {[%clk
0:00:55.5]} 21. Bf3 {[%clk 0:01:03.1]} 21... Bxf3 {[%clk 0:00:52.1]} 22. Qxf3
{[%clk 0:01:03.6]} 22... f5 {[%clk 0:00:34.8]} 23. g3 {[%clk 0:01:02.9]} 23...
Qg5 {[%clk 0:00:31.5]} 24. Nc4 {[%clk 0:01:00.5]} 24... e4 {[%clk 0:00:28.5]}
25. Qg2 {[%clk 0:00:41.8]} 25... d3 {[%clk 0:00:18.8]} 26. Nd6 {[%clk
0:00:41.3]} 26... Rc7 {[%clk 0:00:16]} 27. Rcd1 {[%clk 0:00:29.5]} 27... Nc8
{[%clk 0:00:15.9]} 28. Nc4 {[%clk 0:00:19.5]} 28... Re7 {[%clk 0:00:13.4]} 29.
Ne3 {[%clk 0:00:13]} 29... Kh8 {[%clk 0:00:13]} 30. Rd2 {[%clk 0:00:13]} 30...
Rf7 {[%clk 0:00:10.1]} 31. Rfd1 {[%clk 0:00:13]} 31... Ne7 {[%clk 0:00:10.1]}
32. f3 {[%clk 0:00:11.1]} 32... Qxe3+ {[%clk 0:00:07.4]} 33. Qf2 {[%clk
0:00:11.7]} 33... Qxf2+ {[%clk 0:00:07.4]} 34. Kxf2 {[%clk 0:00:12.6]} 34... Nd5
{[%clk 0:00:07.3]} 35. fxe4 {[%clk 0:00:12.2]} 35... fxe4+ {[%clk 0:00:07.5]}
36. Kg2 {[%clk 0:00:13]} 36... Ne3+ {[%clk 0:00:07]} 37. Kh2 {[%clk 0:00:13.9]}
37... Nxd1 {[%clk 0:00:07.4]} 38. Rxd1 {[%clk 0:00:14.8]} 38... e3 {[%clk
0:00:07.7]} 39. Re1 {[%clk 0:00:15.7]} 39... d2 {[%clk 0:00:07.3]} 40. Rd1
{[%clk 0:00:16.1]} 40... e2 {[%clk 0:00:07.2]} 41. Rxd2 {[%clk 0:00:16.8]} 41...
Rxd2 {[%clk 0:00:07.3]} 42. Kh3 {[%clk 0:00:17.7]} 42... e1=Q {[%clk 0:00:07.3]}
43. g4 {[%clk 0:00:18.6]} 43... Qe3+ {[%clk 0:00:06.1]} 44. Kh4 {[%clk
0:00:18.9]} 44... Rf1 {[%clk 0:00:05.2]} 45. Kh5 {[%clk 0:00:19.8]} 45... Qg5#
{[%clk 0:00:05.1]} 0-1

[Event "Late-Titled-Tuesday-Blitz-June-18-2024"]
[Site "Chess.com"]
[Date "2024.06.18"]
[Round "10"]
[White "LUISMIGUELOV"]
[Black "sammartin99"]
[Result "0-1"]
[WhiteElo "2218"]
[BlackElo "2382"]
[TimeControl "180+1"]
[EndTime "15:56:00 PDT"]
[Termination "sammartin99 won on time"]

1. e4 {[%clk 0:03:00.9]} 1... c5 {[%clk 0:02:58.9]} 2. Nf3 {[%clk 0:02:57.8]}
2... Nc6 {[%clk 0:02:59.2]} 3. d4 {[%clk 0:02:57.7]} 3... cxd4 {[%clk
0:03:00.1]} 4. Nxd4 {[%clk 0:02:57.4]} 4... Nf6 {[%clk 0:03:00.7]} 5. Nc3 {[%clk
0:02:57.3]} 5... e5 {[%clk 0:03:01.2]} 6. Nde2 {[%clk 0:02:56.5]} 6... Bc5
{[%clk 0:02:48.1]} 7. f3 {[%clk 0:02:43.3]} 7... Qb6 {[%clk 0:02:37.1]} 8. Ng3
{[%clk 0:02:23.2]} 8... d5 {[%clk 0:02:29.6]} 9. exd5 {[%clk 0:02:20]} 9... Ne7
{[%clk 0:02:23.3]} 10. Bb5+ {[%clk 0:02:17.5]} 10... Kf8 {[%clk 0:02:20.1]} 11.
Bg5 {[%clk 0:02:11.3]} 11... Bd4 {[%clk 0:01:14.9]} 12. Bxf6 {[%clk 0:02:02.1]}
12... gxf6 {[%clk 0:01:15.8]} 13. Qd3 {[%clk 0:01:51.9]} 13... Bf2+ {[%clk
0:01:11]} 14. Kf1 {[%clk 0:01:45.4]} 14... Bd4 {[%clk 0:01:03.6]} 15. Nge4
{[%clk 0:01:35.2]} 15... Bf5 {[%clk 0:01:01.6]} 16. d6 {[%clk 0:01:24.1]} 16...
Ng6 {[%clk 0:00:55.5]} 17. Nd5 {[%clk 0:01:06.4]} 17... Qa5 {[%clk 0:00:47.1]}
18. Ndxf6 {[%clk 0:00:58.1]} 18... Nf4 {[%clk 0:00:39.5]} 19. Qb3 {[%clk
0:00:49.1]} 19... Kg7 {[%clk 0:00:33.1]} 20. Bd3 {[%clk 0:00:45.3]} 20... Be6
{[%clk 0:00:30]} 21. Bc4 {[%clk 0:00:41.6]} 21... Rhf8 {[%clk 0:00:19.9]} 22. g3
{[%clk 0:00:37.6]} 22... Bxc4+ {[%clk 0:00:11.6]} 23. Qxc4 {[%clk 0:00:36.2]}
23... Ne6 {[%clk 0:00:12.4]} 24. d7 {[%clk 0:00:31.4]} 24... Rad8 {[%clk
0:00:10.2]} 25. c3 {[%clk 0:00:25.3]} 25... Bb6 {[%clk 0:00:09.5]} 26. Qe2
{[%clk 0:00:21.2]} 26... Qa4 {[%clk 0:00:06.4]} 27. b3 {[%clk 0:00:17.7]} 27...
Qc6 {[%clk 0:00:05.9]} 28. c4 {[%clk 0:00:13.2]} 28... Rxd7 {[%clk 0:00:04.7]}
29. Nxd7 {[%clk 0:00:12.1]} 29... Qxd7 {[%clk 0:00:05.6]} 30. Rd1 {[%clk
0:00:11.4]} 30... Qc6 {[%clk 0:00:05.6]} 31. Kg2 {[%clk 0:00:10.5]} 31... f5
{[%clk 0:00:04.6]} 32. Nc3 {[%clk 0:00:08.1]} 32... Bc7 {[%clk 0:00:02.4]} 33.
Nd5 {[%clk 0:00:06.8]} 33... Bb8 {[%clk 0:00:02.8]} 34. h4 {[%clk 0:00:05.7]}
34... Nd4 {[%clk 0:00:02.2]} 35. Qe3 {[%clk 0:00:01]} 35... Qg6 {[%clk
0:00:02.2]} 0-1

[Event "Late-Titled-Tuesday-Blitz-June-18-2024"]
[Site "Chess.com"]
[Date "2024.06.18"]
[Round "10"]
[White "Maus7"]
[Black "nindjaxx8"]
[Result "1-0"]
[WhiteElo "2644"]
[BlackElo "2724"]
[TimeControl "180+1"]
[EndTime "15:56:02 PDT"]
[Termination "Maus7 won on time"]

1. e4 {[%clk 0:02:53.1]} 1... e6 {[%clk 0:02:58.8]} 2. d4 {[%clk 0:02:52.6]}
2... d5 {[%clk 0:02:56.2]} 3. e5 {[%clk 0:02:52.4]} 3... c5 {[%clk 0:02:56.2]}
4. c3 {[%clk 0:02:48.5]} 4... Nc6 {[%clk 0:02:56.5]} 5. Nf3 {[%clk 0:02:48.2]}
5... Qb6 {[%clk 0:02:56.6]} 6. Bd3 {[%clk 0:02:48.1]} 6... cxd4 {[%clk
0:02:55.5]} 7. O-O {[%clk 0:02:48.1]} 7... Nge7 {[%clk 0:02:50.1]} 8. Re1 {[%clk
0:02:45.4]} 8... Ng6 {[%clk 0:02:49.3]} 9. h4 {[%clk 0:02:45]} 9... Be7 {[%clk
0:02:48.9]} 10. h5 {[%clk 0:02:41.5]} 10... Nh4 {[%clk 0:02:49.1]} 11. Nxd4
{[%clk 0:02:23.2]} 11... Nxd4 {[%clk 0:02:37.9]} 12. cxd4 {[%clk 0:02:22.7]}
12... Bd7 {[%clk 0:02:37.7]} 13. Qg4 {[%clk 0:02:10.4]} 13... O-O-O {[%clk
0:02:31.9]} 14. Nc3 {[%clk 0:02:04.3]} 14... Kb8 {[%clk 0:02:30.3]} 15. g3
{[%clk 0:01:25]} 15... Qxd4 {[%clk 0:02:13.2]} 16. Qxd4 {[%clk 0:01:01.9]} 16...
Nf3+ {[%clk 0:02:12.6]} 17. Kg2 {[%clk 0:01:02.4]} 17... Nxd4 {[%clk 0:02:13.5]}
18. f4 {[%clk 0:00:39]} 18... g6 {[%clk 0:01:52.1]} 19. Be3 {[%clk 0:00:35.6]}
19... Nf5 {[%clk 0:01:48.4]} 20. Bf2 {[%clk 0:00:33.9]} 20... gxh5 {[%clk
0:01:41.9]} 21. Rh1 {[%clk 0:00:33.7]} 21... h4 {[%clk 0:01:19.2]} 22. g4 {[%clk
0:00:33.5]} 22... Rhg8 {[%clk 0:01:18.4]} 23. Kf3 {[%clk 0:00:33.5]} 23... d4
{[%clk 0:01:02.5]} 24. Ne4 {[%clk 0:00:32.2]} 24... Ne3 {[%clk 0:01:01.3]} 25.
Bxh4 {[%clk 0:00:30.1]} 25... Bxh4 {[%clk 0:00:52.5]} 26. Rxh4 {[%clk 0:00:31]}
26... Bc6 {[%clk 0:00:52.6]} 27. g5 {[%clk 0:00:31.2]} 27... Nd5 {[%clk
0:00:36]} 28. a3 {[%clk 0:00:29.4]} 28... Ne7 {[%clk 0:00:19.5]} 29. Rxh7 {[%clk
0:00:28.8]} 29... Nf5 {[%clk 0:00:18.5]} 30. Rah1 {[%clk 0:00:26.3]} 30... Rd7
{[%clk 0:00:09.8]} 31. R1h2 {[%clk 0:00:23.1]} 31... a6 {[%clk 0:00:08.4]} 32.
Kf2 {[%clk 0:00:20.1]} 32... Ne3 {[%clk 0:00:07.6]} 33. Nf6 {[%clk 0:00:19.6]}
33... Rdd8 {[%clk 0:00:04.5]} 34. Nxg8 {[%clk 0:00:19.1]} 34... Ng4+ {[%clk
0:00:04.7]} 35. Kg3 {[%clk 0:00:16.9]} 35... Nxh2 {[%clk 0:00:05.6]} 36. Kxh2
{[%clk 0:00:16.7]} 36... Rxg8 {[%clk 0:00:05.8]} 37. Rxf7 {[%clk 0:00:17.1]}
37... Rd8 {[%clk 0:00:06.5]} 38. g6 {[%clk 0:00:16.7]} 38... Bb5 {[%clk
0:00:06.9]} 39. Bxb5 {[%clk 0:00:14.3]} 39... axb5 {[%clk 0:00:07.8]} 40. g7
{[%clk 0:00:14.9]} 40... d3 {[%clk 0:00:08.4]} 41. Rf8 {[%clk 0:00:15.4]} 41...
Kc7 {[%clk 0:00:08.9]} 42. Rxd8 {[%clk 0:00:15.6]} 42... Kxd8 {[%clk 0:00:09.8]}
43. g8=Q+ {[%clk 0:00:15.7]} 1-0